bitfinex-derivatives/quotes_ETHF0:USTF0_20250422
["timestamp","ask_amount","ask_price","bid_price","bid_amount"]
[1745335811534,7.16683,1713.3,1713.1,1.16683]
[1745335811733,6.0001,1713.3,1713.2,1.16679]
[1745335811935,6.0001,1713.3,1713.2,4.37459]
[1745335812831,6.0001,1713.3,1713.2,1.16679]
[1745335813029,6.0001,1713.3,1712.0,2.91902]
[1745335813030,1.16739,1712.4,1712.0,2.91902]
[1745335813235,3.2078,1712.2,1711.9,6.3113]
[1745335813530,3.2078,1712.2,1711.4,8.2813]
[1745335813531,1.1679,1711.6,1711.4,1.16797]
[1745335813739,1.16799,1711.5,1711.3,7.47935]
[1745335813934,3.2078,1711.7,1711.3,6.3113]
[1745335814239,3.21655887,1711.7,1711.3,6.32005887]
[1745335814430,0.00875887,1711.7,1711.6,1.16788]
[1745335814745,0.00875887,1711.7,1711.3,6.32005887]
[1745335814943,3.21655887,1711.7,1711.3,0.00875887]
[1745335815139,6.0023,1711.6,1711.5,1.16795]
[1745335815540,0.00875887,1711.7,1711.6,1.16788]
[1745335815837,0.00875887,1711.7,1711.6,7.63158]
[1745335816231,0.00875887,1711.7,1711.6,12.63158]
[1745335816939,0.00875887,1711.7,1711.6,15.83938]
[1745335817140,40.8,1712.2,1711.6,15.83938]
[1745335817440,1.16754,1712.1,1711.7,6.4637]
[1745335817638,3.2078,1712.3,1711.9,1.16766]
[1745335817935,1.16743,1712.3,1711.7,6.4637]
[1745335818136,8.503,1712.5,1712.0,3.2078]
[1745335818338,8.3959,1712.7,1712.1,7.63124]
[1745335818339,0.00875887,1712.2,1712.1,7.63124]
[1745335818533,0.00875887,1712.2,1712.1,12.71324]
[1745335818735,0.00875887,1712.2,1712.1,11.5457]
[1745335818940,0.00875887,1712.2,1712.0,0.00875887]
[1745335819244,1.16795,1711.5,1711.4,2.4348]
[1745335819439,4.37575,1711.5,1711.4,2.4348]
[1745335820039,10.36495,1711.5,1711.4,2.4348]
[1745335821538,1.16802,1711.4,1711.3,0.00875887]
[1745335821742,1.16802,1711.4,1711.3,6.21385887]
[1745335823040,7.45672,1711.4,1711.3,0.00875887]
[1745335824838,7.45672,1711.4,1711.3,1.17684887]
[1745335825137,7.45672,1711.4,1711.3,0.00875887]
[1745335826249,2.92023,1711.3,1710.7,6.2359]
[1745335826439,3.2078,1711.0,1710.9,1.1683]
[1745335826743,2.92093,1710.9,1709.5,3.2078]
[1745335826947,11.5059,1710.9,1710.3,1.16872]
[1745335827149,11.5059,1710.9,1710.2,6.2359]
[1745335827150,1.16877,1710.3,1710.2,6.2359]
[1745335827734,3.2078,1710.4,1710.2,7.40469]
[1745335827939,4.37652,1710.4,1710.3,1.16877]
[1745335828147,1.16877,1710.3,1710.2,7.40469]
[1745335828347,7.20447,1710.3,1710.2,6.2359]
[1745335828647,1.16891,1710.1,1710.0,4.0935]
[1745335828848,1.75261,1710.0,1709.6,1.16925]
[1745335829043,3.2078,1709.8,1709.3,14.6718]
[1745335829354,3.2078,1710.0,1709.6,1.4623]
[1745335829652,0.00875887,1709.7,1709.6,3.55025]
[1745335829849,3.2078,1710.0,1709.9,1.16905]
[1745335830046,3.2078,1710.3,1710.2,1.16884]
[1745335830437,5.2171,1710.7,1710.2,5.0]
[1745335830646,4.37625,1710.8,1710.6,1.16853]
[1745335830842,3.2078,1710.8,1710.7,1.1685]
[1745335831151,3.2078,1710.8,1710.6,1.16857]
[1745335831351,4.37627,1710.8,1710.7,6.322]
[1745335831542,3.2078,1710.8,1710.7,7.4905]
[1745335831943,4.37623,1710.8,1710.7,6.322]
[1745335832340,10.35753,1710.8,1710.7,6.322]
[1745335832544,9.1891,1710.8,1710.7,6.322]
[1745335832745,4.37623,1710.8,1710.7,6.322]
[1745335832944,3.2078,1710.8,1710.7,7.4905]
[1745335833153,0.00875887,1710.9,1710.8,1.16843]
[1745335833344,3.21655887,1710.9,1710.8,6.91243]
[1745335834247,3.21655887,1710.9,1710.8,13.23443]
[1745335834948,3.21655887,1710.9,1710.8,12.066]
[1745335835159,3.21655887,1710.9,1710.8,13.23443]
[1745335835652,3.21655887,1710.9,1710.8,12.066]
[1745335835847,3.21655887,1710.9,1710.8,6.322]
[1745335836049,4.38491887,1710.9,1710.8,6.322]
[1745335836247,8.21655887,1710.9,1710.5,6.43945887]
[1745335836455,4.37637,1710.6,1710.5,6.43945887]
[1745335836657,3.2078,1710.6,1710.5,6.43945887]
[1745335836954,9.37637,1710.6,1710.5,4.10105887]
[1745335837161,4.37637,1710.6,1710.5,4.10105887]
[1745335837356,9.37637,1710.6,1710.5,4.10105887]
[1745335837557,8.2078,1710.6,1710.5,4.10105887]
[1745335837761,9.37637,1710.6,1710.5,4.10105887]
[1745335837961,13.9826,1710.6,1710.5,5.26969887]
[1745335838258,8.9826,1710.6,1710.5,5.26969887]
[1745335839253,10.15117,1710.6,1710.5,5.26969887]
[1745335839555,3.2078,1710.6,1710.5,5.26969887]
[1745335839760,15.15117,1710.6,1710.5,4.10105887]
[1745335839951,20.36667,1710.6,1710.5,2.72481774]
[1745335840262,25.36357,1710.6,1710.5,2.72481774]
[1745335840852,1.1687,1710.4,1710.3,2.3387]
[1745335841159,4.3765,1710.4,1710.3,2.3387]
[1745335841362,4.3765,1710.4,1710.3,3.50747]
[1745335841563,3.2078,1710.4,1710.3,3.50747]
[1745335842160,3.2078,1710.4,1710.3,1.16877]
[1745335842353,1.1688,1710.3,1710.2,1.16877]
[1745335842557,5.8688,1710.3,1710.2,1.16877]
[1745335842964,5.8688,1710.3,1710.0,2.9223]
[1745335842965,5.8688,1710.3,1709.9,2.92262]
[1745335843166,5.8688,1710.3,1710.2,1.16884]
[1745335843356,9.0766,1710.3,1710.2,1.16884]
[1745335843858,10.24537,1710.3,1710.2,1.16884]
[1745335844056,1.16884,1710.2,1710.1,1.16891]
[1745335844252,6.88974,1710.2,1710.1,1.16891]
[1745335844454,6.88977,1710.2,1710.0,6.1499]
[1745335844653,3.2078,1710.1,1710.0,7.31882]
[1745335845368,3.2078,1710.4,1710.2,2.92205]
[1745335845554,5.7209,1710.5,1709.9,2.3393]
[1745335845855,3.2078,1710.1,1709.9,2.3393]
[1745335846162,5.7209,1710.0,1709.9,3.50835]
[1745335846361,45.17675,1710.1,1710.0,1.16898]
[1745335846556,1.16898,1710.0,1709.9,3.5083]
[1745335846858,1.16898,1710.0,1709.9,2.3393]
[1745335847057,7.49918,1710.0,1709.9,2.3393]
[1745335847256,48.29918,1710.0,1709.9,2.3393]
[1745335847456,48.29918,1710.0,1709.9,2.3965284]
[1745335848262,41.96898,1710.0,1709.9,0.0572284]
[1745335848461,48.29918,1710.0,1709.9,1.2262784]
[1745335848856,48.29918,1710.0,1709.9,0.0572284]
[1745335849856,53.29918,1710.0,1709.9,0.0572284]
[1745335850371,47.1302,1710.0,1709.9,0.0572284]
[1745335850567,53.29918,1710.0,1709.9,0.0572284]
[1745335850859,52.1302,1710.0,1709.9,0.0572284]
[1745335851059,48.29918,1710.0,1709.9,0.0572284]
[1745335851563,53.29918,1710.0,1709.9,0.0572284]
[1745335852266,1.16911,1709.8,1709.7,3.2575]
[1745335852758,11.88221,1709.8,1709.7,2.3395]
[1745335853063,52.68221,1709.8,1709.7,2.3395]
[1745335853750,52.68221,1709.8,1709.7,1.15497]
[1745335853950,47.68221,1709.8,1709.7,1.15497]
[1745335855258,47.68221,1709.8,1709.7,0.78597]
[1745335855964,47.68221,1709.8,1709.2,2.92382]
[1745335855965,1.16939,1709.4,1709.3,7.15304]
[1745335856153,3.2078,1709.4,1709.3,7.15304]
[1745335856360,12.83798,1709.7,1709.6,1.16925]
[1745335856663,3.2078,1709.7,1709.6,1.16925]
[1745335857766,3.2078,1709.7,1709.6,6.16925]
[1745335857954,0.00875887,1709.9,1709.8,1.16911]
[1745335858159,4.38560887,1709.9,1709.8,1.16911]
[1745335859367,1.16911,1709.8,1709.7,7.15276]
[1745335859556,3.21655887,1709.9,1709.8,1.16911]
[1745335859762,3.21655887,1709.9,1709.8,6.16911]
[1745335860166,3.21655887,1709.9,1709.8,12.49111]
[1745335861063,0.00875887,1709.9,1709.8,12.49111]
[1745335861254,13.4147,1710.7,1710.4,1.16866]
[1745335861456,3.2078,1710.5,1710.4,1.16866]
[1745335861657,3.2078,1710.5,1710.4,1.16864]
[1745335861859,11.6688,1710.7,1710.5,1.16864]
[1745335862054,12.8373,1710.7,1710.6,6.0321]
[1745335862359,20.80958,1710.7,1710.0,2.92245]
[1745335862566,4.37648,1710.5,1710.4,1.16869]
[1745335862961,1.16871,1710.4,1710.3,1.16877]
[1745335863163,1.16877,1710.3,1710.2,6.04085887]
[1745335863563,4.37657,1710.3,1710.2,6.04085887]
[1745335863853,4.37657,1710.3,1710.2,7.20969887]
[1745335864266,4.37657,1710.3,1710.2,6.04085887]
[1745335864468,4.37657,1710.3,1710.2,0.00875887]
[1745335864764,1.16918,1709.7,1709.6,3.50893]
[1745335865063,1.16925,1709.6,1709.4,7.20113]
[1745335865369,1.16927,1709.6,1709.5,1.16927]
[1745335866461,1.16932,1709.5,1709.4,7.20115]
[1745335866659,1.16932,1709.5,1709.4,7.20117]
[1745335866968,3.2078,1709.6,1709.2,9.8844]
[1745335867177,1.16952,1709.2,1709.1,2.3811]
[1745335867364,4.3773,1709.3,1709.1,2.3811]
[1745335867667,4.3773,1709.3,1709.2,1.16952]
[1745335868071,3.2078,1709.3,1709.1,1.16955]
[1745335868271,4.37726,1709.3,1709.2,12.4511]
[1745335868565,4.81846742,1709.3,1709.2,12.4511]
[1745335868772,4.37726,1709.3,1709.2,12.4511]
[1745335869162,4.37726,1709.3,1709.2,6.1291]
[1745335869464,4.37726,1709.3,1709.0,2.3405]
[1745335869465,1.16959,1709.1,1709.0,2.3405]
[1745335869659,3.64646292,1709.3,1709.0,2.3405]
[1745335869865,3.2078,1709.3,1709.2,1.16952]
[1745335870373,4.37719,1709.4,1709.3,1.16946]
[1745335870573,4.37723,1709.4,1709.3,1.16946]
[1745335871074,1.16946,1709.3,1709.2,1.16947]
[1745335871375,1.16952,1709.2,1709.1,8.76134]
[1745335871673,4.37732,1709.2,1709.1,7.5918]
[1745335871867,3.2078,1709.2,1709.1,8.76139]
[1745335872064,0.44392741,1709.3,1709.2,1.16952]
[1745335872264,4.37727,1709.3,1709.2,6.2876]
[1745335872665,4.37727,1709.3,1709.1,1.4627]
[1745335872666,1.16952,1709.2,1709.1,1.4627]
[1745335872869,7.15352,1709.2,1709.1,1.4627]
[1745335873270,1.16959,1709.1,1709.0,0.9184]
[1745335873574,4.37739,1709.1,1709.0,0.9184]
[1745335873972,10.56929,1709.1,1709.0,0.9184]
[1745335874267,1.16966,1709.0,1708.9,1.16973]
[1745335874469,1.16973,1708.9,1708.8,2.3408]
[1745335874684,4.37753,1708.9,1708.8,0.5957]
[1745335874871,1.17013,1708.4,1708.3,1.17013]
[1745335875062,1.17014,1708.3,1708.2,6.2299]
[1745335875261,1.17014,1708.3,1708.2,7.40011]
[1745335875460,4.37792,1708.4,1708.3,1.17014]
[1745335875661,1.17014,1708.3,1708.2,6.2299]
[1745335876069,1.17014,1708.3,1707.8,1.17048]
[1745335876070,1.17044,1707.9,1707.8,1.17048]
[1745335876266,1.7441,1707.9,1707.8,1.17048]
[1745335876469,9.3997,1708.2,1708.0,1.17028]
[1745335876668,45.17806,1708.2,1708.1,1.17028]
[1745335876862,3.2078,1708.3,1708.2,1.17021]
[1745335877064,3.2078,1708.4,1708.3,1.17011]
[1745335877268,1.17021,1708.2,1708.1,6.92106]
[1745335877475,7.46836,1708.3,1708.1,5.7508]
[1745335877670,44.0078,1708.4,1708.2,1.17019]
[1745335877880,1.17021,1708.2,1708.1,5.7508]
[1745335878364,6.13323,1708.3,1707.9,8.4113]
[1745335878569,4.37814,1708.1,1708.0,5.7508]
[1745335878768,3.2078,1708.1,1708.0,9.26305]
[1745335878969,4.37808,1708.1,1708.0,9.26305]
[1745335879176,4.37808,1708.1,1708.0,14.4147]
[1745335879365,4.37808,1708.1,1708.0,8.6639]
[1745335879973,4.37808,1708.1,1708.0,14.7361]
[1745335880275,3.2078,1708.1,1708.0,15.90645]
[1745335880470,1.1702,1708.3,1708.2,1.17021]
[1745335880674,0.00875887,1708.5,1708.4,1.17007]
[1745335881079,0.00875887,1708.5,1708.4,12.49207]
[1745335881278,3.2078,1709.2,1709.1,1.16959]
[1745335881573,1.16969,1709.0,1708.8,1.16974]
[1745335881767,3.2078,1708.9,1708.6,5.094]
[1745335881970,1.16994,1708.6,1708.5,5.3108]
[1745335882167,1.17014,1708.3,1708.2,3.2078]
[1745335882374,1.17014,1708.3,1708.2,6.0722]
[1745335882672,1.17022,1708.2,1708.1,1.17900887]
[1745335883068,1.17021,1708.2,1708.1,1.17900887]
[1745335883278,4.37801,1708.2,1708.1,1.17900887]
[1745335883467,4.37801,1708.2,1708.1,1.17903887]
[1745335883678,1.17019,1708.3,1708.2,1.17021]
[1745335883876,5.9754,1708.5,1708.3,1.17009]
[1745335884077,1.17,1708.6,1708.2,6.0965]
[1745335884279,1.16994,1708.6,1708.3,2.92536]
[1745335884477,1.17867887,1708.7,1708.4,6.0965]
[1745335884684,1.16994,1708.6,1708.5,1.16995]
[1745335884976,1.16995,1708.6,1708.5,1.16997]
[1745335885180,1.16995,1708.6,1708.5,6.322]
[1745335885576,7.05495,1708.6,1708.5,6.322]
[1745335885780,7.05495,1708.6,1708.5,7.492]
[1745335886085,1.17021,1708.2,1708.1,0.00875887]
[1745335886380,4.37801,1708.2,1708.1,0.00875887]
[1745335886584,9.37801,1708.2,1708.1,8.87e-06]
[1745335887171,11.70624,1707.6,1706.2,1.17156]
[1745335887372,3.2078,1707.1,1706.3,2.92879]
[1745335887573,1.17105,1707.0,1706.7,5.7663]
[1745335887781,1.17105,1707.0,1706.7,1.17119]
[1745335887979,12.18002,1706.9,1706.2,5.7663]
[1745335888278,4.38782502,1706.7,1706.2,5.7663]
[1745335888480,1.17133,1706.6,1706.2,5.7663]
[1745335888679,1.17133,1706.6,1706.3,1.17146]
[1745335888881,3.21658502,1706.7,1706.0,3.2078]
[1745335889074,1.17186,1705.8,1705.7,7.13498221]
[1745335889584,6.322,1706.6,1706.5,1.17137]
[1745335889777,40.8,1707.1,1706.5,5.0]
[1745335889977,40.8,1707.1,1706.4,6.13633]
[1745335890179,44.0078,1707.1,1706.5,12.5349]
[1745335890380,45.17879,1707.1,1706.8,1.17115]
[1745335890581,44.0078,1707.1,1706.5,14.0897]
[1745335890777,1.17131,1706.6,1706.5,14.0897]
[1745335891677,1.17131,1706.6,1706.5,7.8768]
[1745335891893,12.0012,1706.6,1705.0,0.46053214]
[1745335892087,12.0012,1706.6,1705.5,3.2078]
[1745335892088,3.2078,1706.2,1705.5,3.2078]
[1745335892286,6.13633,1706.5,1705.8,3.2078]
[1745335892586,1.17214,1705.4,1705.2,7.37777865]
[1745335892786,3.2078,1705.7,1705.2,7.37777865]
[1745335892988,3.2078,1705.4,1705.2,8.55004865]
[1745335893182,1.18079502,1705.6,1705.2,19.42387865]
[1745335893383,0.00878502,1705.6,1705.5,4.37986]
[1745335893585,3.2078,1706.0,1705.5,8.2078]
[1745335893785,4.3794,1706.2,1705.9,1.17179]
[1745335894083,3.2078,1706.2,1705.8,1.17183]
[1745335894284,3.2078,1706.0,1705.8,1.17183]
[1745335894596,3.2078,1706.0,1705.9,1.17179]
[1745335894783,45.652,1706.4,1706.1,1.17164]
[1745335894784,45.17927,1706.4,1706.1,1.17164]
[1745335895087,3.2078,1706.2,1705.7,0.00878502]
[1745335895292,1.17168,1706.1,1706.0,6.322]
[1745335895682,1.17168,1706.1,1705.7,0.00878502]
[1745335895683,5.8304,1706.1,1705.7,0.00878502]
[1745335895878,4.37966,1705.8,1705.7,0.00878502]
[1745335896186,3.2078,1705.9,1705.7,6.33078502]
[1745335896387,1.17186,1705.8,1705.7,6.33078502]
[1745335896891,12.00226,1705.8,1705.7,3.62165498]
[1745335897196,1.1722,1705.3,1705.2,6.44e-06]
[1745335897387,4.38,1705.3,1705.2,6.44e-06]
[1745335897896,50.18,1705.3,1705.2,6.44e-06]
[1745335898089,45.18,1705.3,1705.2,6.44e-06]
[1745335898279,50.18,1705.3,1705.2,6.44e-06]
[1745335898786,45.18,1705.3,1705.2,6.44e-06]
[1745335899286,44.0078,1705.3,1705.2,6.44e-06]
[1745335899591,0.00878502,1705.4,1705.2,5.00000644]
[1745335899796,0.00878502,1705.4,1705.3,1.1722]
[1745335900088,3.21658502,1705.4,1705.2,6.32200644]
[1745335900484,0.00878502,1705.4,1705.3,1.1722]
[1745335900687,3.2078,1705.8,1705.2,11.32200644]
[1745335900886,4.37947,1706.1,1705.4,2.9303]
[1745335901081,3.2078,1705.8,1705.2,6.33079146]
[1745335901291,1.17208,1705.5,1705.2,6.33079146]
[1745335901491,3.2078,1705.3,1704.3,1.17286]
[1745335901687,3.2078,1704.7,1704.3,1.17286]
[1745335901883,3.2078,1704.7,1704.1,0.24277915]
[1745335902087,4.38043,1704.7,1704.5,1.17273]
[1745335902289,3.2078,1704.7,1704.3,6.322]
[1745335902494,3.2078,1704.7,1704.6,1.17268]
[1745335902692,4.38923502,1704.7,1704.5,1.17272]
[1745335902889,3.21658502,1704.7,1704.5,1.17272]
[1745335903088,1.17272,1704.6,1704.5,6.322]
[1745335903485,7.62888923,1704.6,1704.5,4.57029498]
[1745335903689,15.83668923,1704.6,1704.5,3.33580498]
[1745335903890,10.83668923,1704.6,1704.5,1.87290498]
[1745335904091,1.17292,1704.3,1704.1,1.41577915]
[1745335904285,3.2078,1704.4,1704.1,0.24277915]
[1745335904487,4.38076,1704.2,1704.1,0.24277915]
[1745335904898,4.44962347,1704.2,1704.1,0.24277915]
[1745335905199,15.67882347,1704.2,1704.1,0.24277915]
[1745335905589,10.67882347,1704.2,1704.1,0.24277915]
[1745335905788,10.60996,1704.2,1704.1,0.24277915]
[1745335906191,9.437,1704.2,1704.1,0.24277915]
[1745335906493,4.86263461,1704.2,1704.1,0.24277915]
[1745335906699,4.38076,1704.2,1704.1,0.24277915]
[1745335906898,3.2078,1704.2,1704.1,1.41579915]
[1745335907099,17.822,1704.4,1704.2,1.17294]
[1745335907299,1.17296,1704.2,1704.1,0.24277915]
[1745335907492,4.38076,1704.2,1704.1,0.24277915]
[1745335907694,3.2078,1704.2,1704.1,1.41579915]
[1745335907885,0.00878502,1704.7,1704.1,5.24277915]
[1745335908086,0.00878502,1704.7,1704.6,4.38048]
[1745335908288,75.5798,1705.4,1704.7,2.93144]
[1745335908289,3.2078,1705.4,1704.7,2.93144]
[1745335908593,3.2078,1705.5,1705.1,2.93085]
[1745335908788,5.7004,1705.7,1704.9,6.13899]
[1745335908996,5.7004,1705.7,1704.9,2.93119]
[1745335909200,3.2078,1706.2,1705.3,3.2078]
[1745335909498,5.7004,1706.1,1705.7,1.17188]
[1745335909697,0.00878502,1705.9,1705.5,3.2078]
[1745335910002,0.00878502,1705.9,1705.3,3.2078]
[1745335910601,3.2078,1705.8,1705.5,1.17202]
[1745335910802,0.00878502,1705.9,1705.6,6.2045]
[1745335910803,3.21658502,1705.9,1705.6,6.2045]
[1745335910997,0.00878502,1705.9,1705.8,1.17186]
[1745335911196,0.00878502,1705.9,1705.8,7.37636]
[1745335911397,0.00878502,1705.9,1705.8,12.37636]
[1745335912002,0.00878502,1705.9,1705.8,7.37636]
[1745335912211,44.0078,1706.5,1705.8,11.2045]
[1745335912405,1.17147,1706.4,1706.2,1.17155]
[1745335912593,6.13551,1707.0,1706.0,6.13702]
[1745335912898,4.37918,1706.7,1706.5,1.17142]
[1745335913098,1.17142,1706.6,1706.3,1.17157]
[1745335913295,3.2078,1706.7,1706.2,1.17163]
[1745335913497,3.2078,1706.5,1706.3,0.00878502]
[1745335913696,1.17156,1706.4,1706.3,0.00878502]
[1745335913900,11.13662,1706.5,1706.0,6.322]
[1745335914105,3.2078,1706.2,1705.6,8.227]
[1745335914308,1.17165,1706.3,1706.1,1.17174]
[1745335914600,4.37951,1706.2,1705.6,11.15723]
[1745335914906,4.37951,1706.2,1706.0,1.1718]
[1745335915205,3.2078,1706.5,1705.7,2.93885502]
[1745335915402,3.2078,1706.4,1705.8,2.92989]
[1745335915609,1.17187,1706.0,1705.8,1.17195]
[1745335915798,1.17179,1706.1,1705.9,1.17187]
[1745335916105,4.37967,1706.0,1705.8,1.17194]
[1745335916300,1.17197,1705.8,1705.7,0.00878502]
[1745335916500,3.2078,1706.0,1705.7,0.00878502]
[1745335916800,0.00878502,1705.9,1705.8,1.17197]
[1745335917796,0.00878502,1705.9,1705.8,6.17197]
[1745335917998,3.2078,1706.1,1706.0,1.17184]
[1745335918203,4.37947,1706.3,1706.2,1.1717]
[1745335918503,3.2078,1706.5,1706.4,1.17151]
[1745335918699,3.2078,1706.5,1706.2,1.17169]
[1745335918897,3.2078,1706.3,1705.9,5.315]
[1745335919104,1.17181,1706.1,1705.7,0.00878502]
[1745335919308,3.2078,1706.1,1705.7,0.00878502]
[1745335919500,3.2078,1706.1,1705.7,2.93881502]
[1745335919709,3.2078,1706.1,1706.0,1.17184]
[1745335920011,0.00878502,1706.3,1706.2,1.1717]
[1745335920403,0.00878502,1706.3,1706.2,6.1717]
[1745335920904,4.37906,1706.9,1706.5,2.92874]
[1745335921101,8.382,1707.4,1706.8,1.17129]
[1745335921297,2.92822,1706.8,1706.3,5.1582]
[1745335921500,6.13671,1706.4,1705.9,3.2078]
[1745335921704,1.1717,1706.2,1705.8,7.89976]
[1745335921903,1.17177,1706.1,1706.0,1.18060502]
[1745335922103,1.17174,1706.2,1706.1,1.17176]
[1745335922502,3.21658502,1706.3,1706.0,0.00878502]
[1745335922807,4.37957,1706.1,1706.0,0.00878502]
[1745335923004,9.37957,1706.1,1706.0,0.00878502]
[1745335923201,2.92991,1705.9,1705.4,1.17222]
[1745335923402,3.2078,1705.5,1705.4,1.17222]
[1745335923603,3.2078,1705.5,1705.0,4.29403]
[1745335923902,4.38025,1705.1,1705.0,1.08623]
[1745335924110,6.13896,1705.1,1704.4,3.2078]
[1745335924306,6.13896,1705.1,1704.2,4.9162]
[1745335924307,3.2078,1704.7,1704.2,4.9162]
[1745335924500,3.2078,1704.4,1704.1,1.41589915]
[1745335924710,0.20649345,1704.6,1704.3,0.00878502]
[1745335924905,3.2078,1704.6,1704.5,1.17287]
[1745335925213,3.2078,1704.6,1704.3,0.00878502]
[1745335925510,3.2078,1704.9,1704.3,5.00878502]
[1745335925712,3.2078,1704.9,1704.8,1.17266]
[1745335925910,3.2078,1704.9,1704.7,1.17269]
[1745335926314,1.17277,1704.7,1704.4,1.17287]
[1745335926610,1.17288,1704.5,1704.3,6.23374502]
[1745335926804,3.2078,1704.6,1704.3,6.23374502]
[1745335926805,1.17294,1704.4,1704.3,0.00878502]
[1745335926998,3.2078,1704.4,1704.3,1.18178502]
[1745335927203,3.2078,1704.4,1704.3,0.00878502]
[1745335927204,50.31842653,1704.4,1704.3,0.00878502]
[1745335927803,50.18074,1704.4,1704.3,0.00878502]
[1745335928004,2.93273,1704.2,1703.6,1.17344]
[1745335928200,3.2078,1703.7,1703.5,5.052]
[1745335928401,3.2078,1703.7,1703.1,2.93458]
[1745335928607,3.2078,1704.2,1703.5,2.9339]
[1745335928807,3.2078,1704.2,1704.0,1.17319]
[1745335929002,1.17318,1704.1,1703.5,2.9338]
[1745335929208,3.2078,1704.2,1703.9,5.02e-06]
[1745335929209,1.17321,1704.0,1703.9,5.02e-06]
[1745335929415,4.47362563,1704.0,1703.9,5.02e-06]
[1745335929617,4.48432642,1704.0,1703.9,5.02e-06]
[1745335929817,4.38101,1704.0,1703.9,5.02e-06]
[1745335930111,3.2078,1704.0,1703.9,1.17328502]
[1745335930314,4.38101,1704.0,1703.9,5.02e-06]
[1745335930504,10.09431,1704.0,1703.9,5.02e-06]
[1745335930709,1.18182502,1704.3,1703.9,5.00000502]
[1745335930905,3.2078,1704.2,1704.1,1.17314]
[1745335931212,0.00878502,1704.3,1704.2,1.17307]
[1745335931415,3.2078,1704.4,1704.0,13.7531]
[1745335931617,3.2078,1704.4,1704.2,1.17302]
[1745335931818,3.2078,1704.4,1704.3,1.173]
[1745335932113,6.14022,1704.4,1703.9,5.02e-06]
[1745335932316,4.38088,1704.2,1704.0,1.17319]
[1745335932519,4.38088,1704.2,1703.9,5.02e-06]
[1745335932520,1.17321,1704.0,1703.9,5.02e-06]
[1745335932722,4.38101,1704.0,1703.9,5.02e-06]
[1745335932915,9.48432642,1704.0,1703.9,5.02e-06]
[1745335933120,9.5769542,1704.0,1703.9,5.02e-06]
[1745335933510,9.5769542,1704.0,1702.7,6.0493]
[1745335933511,2.93351,1703.8,1702.8,2.9351]
[1745335933720,3.2078,1703.2,1703.1,1.17383]
[1745335934216,16.5778,1703.2,1702.4,8.1278]
[1745335934512,3.21658502,1703.0,1702.9,1.17397]
[1745335934726,0.00878502,1703.0,1702.9,1.17397]
[1745335934919,3.21658502,1703.0,1702.7,5.8436]
[1745335935309,4.38184,1702.8,1702.7,5.8436]
[1745335935506,3.2078,1702.8,1702.1,0.2006506]
[1745335935715,3.2078,1702.4,1702.1,0.2006506]
[1745335935914,3.2078,1702.2,1702.1,0.2006506]
[1745335936410,9.99185,1702.2,1702.1,0.2006506]
[1745335936607,1.17473,1701.8,1701.7,7.13498221]
[1745335936817,4.38253,1701.8,1701.7,7.13498221]
[1745335937012,3.2078,1701.6,1700.0,3.2223009]
[1745335937220,3.2078,1700.9,1700.1,30.74149515]
[1745335937413,3.2078,1700.9,1700.4,3.2078]
[1745335937718,0.00881186,1701.0,1700.6,0.01486326]
[1745335937918,3.2078,1701.2,1701.0,1.17525]
[1745335938119,3.2078,1701.2,1701.0,6.66232404]
[1745335938313,10.1614,1702.0,1701.1,1.17518]
[1745335938518,3.2078,1701.8,1701.3,3.2078]
[1745335938721,2.27516578,1701.9,1701.5,0.01486326]
[1745335939026,8.377,1702.4,1701.5,3.22266326]
[1745335939215,1.17487,1701.6,1701.5,0.02367512]
[1745335939422,1.17487,1701.6,1701.5,5.12e-06]
[1745335939423,4.38267,1701.6,1701.5,5.12e-06]
[1745335939620,6.27847806,1701.6,1701.5,5.12e-06]
[1745335939921,6.17487,1701.6,1701.5,0.01486838]
[1745335940117,6.17487,1701.6,1700.6,3.2078]
[1745335940118,13.68994195,1701.6,1700.6,3.2078]
[1745335940313,3.2078,1701.3,1700.4,11.18398507]
[1745335940512,1.17535,1700.9,1700.8,0.01487164]
[1745335940721,1.17563,1700.5,1700.4,8.58317507]
[1745335940925,1.17576,1700.3,1700.2,4.01860516]
[1745335941123,5.0049,1700.4,1700.2,4.01860516]
[1745335941323,0.00881186,1700.4,1700.3,5.87125913]
[1745335941523,3.72206091,1700.4,1700.2,4.01860516]
[1745335941726,4.03843213,1700.3,1700.2,5.16e-06]
[1745335941919,1.17576,1700.3,1700.2,5.16e-06]
[1745335942115,15.30020092,1700.3,1700.2,20.87125913]
[1745335942416,8.7487,1701.0,1700.3,5.87125913]
[1745335942625,5.5409,1701.0,1700.7,3.2078]
[1745335942822,3.2078,1700.8,1700.6,0.01482584]
[1745335943019,1.20990141,1700.9,1700.7,5.87125913]
[1745335943220,2.93873,1700.7,1700.1,0.00881186]
[1745335943523,1.17583,1700.2,1700.1,0.00881186]
[1745335943932,1.17583,1700.2,1699.2,3.2078]
[1745335943933,8.38075442,1700.2,1699.2,3.2078]
[1745335944124,3.2078,1699.9,1699.2,3.2078]
[1745335944325,6.49495442,1700.2,1699.3,5.6259]
[1745335944520,6.322,1700.2,1699.9,3.2078]
[1745335944718,5.87148052,1700.1,1700.0,0.0148242]
[1745335945230,29.7416806,1700.1,1699.3,3.2078]
[1745335945422,1.17625,1699.6,1699.3,3.20388052]
[1745335945724,1.59170708,1699.5,1698.9,3.2078]
[1745335945926,0.41534708,1699.5,1699.3,3.2078]
[1745335946225,3.2078,1700.3,1699.4,2.94097]
[1745335946525,12.4468,1700.7,1700.3,0.00391948]
[1745335946729,1.17569,1700.4,1700.3,0.00391948]
[1745335946920,2.93976,1700.1,1699.3,3.2078]
[1745335947120,3.2078,1699.8,1699.3,3.20388052]
[1745335947419,0.10385204,1699.7,1699.3,3.20388052]
[1745335947624,0.1126639,1699.7,1699.3,3.20388052]
[1745335947827,0.00881186,1699.7,1699.3,3.20388052]